[Event "30e Open International de Saint Affrique"]
[Site "Saint Affrique, France"]
[Date "2024.07.27"]
[Round "9.3"]
[White "Flear, Glenn"]
[Black "Garde, Guillaume"]
[Result "1-0"]
[TimeControl "1h30/40 + 30min + sec/mv"]
[WhiteTitle "GM"]
[WhiteElo "2390"]
[BlackElo "2082"]

1. d4 {[%clk 01:30:56]} {[%emt 00:00:03]} d5 {[%clk 01:30:55]} {[%emt
00:00:06]} 2. c4 {[%clk 01:31:19]} {[%emt 00:00:06]} dxc4 {[%clk 01:31:15]}
{[%emt 00:00:10]} 3. e3 {[%clk 01:31:31]} {[%emt 00:00:17]} e5 {[%clk
01:31:17]} {[%emt 00:00:29]} 4. Bxc4 {[%clk 01:31:36]} {[%emt 00:00:26]} exd4
{[%clk 01:31:27]} {[%emt 00:00:21]} 5. exd4 {[%clk 01:31:57]} {[%emt 00:00:08]}
Bd6 {[%clk 01:31:40]} {[%emt 00:00:17]} 6. Nf3 {[%clk 01:29:24]} {[%emt
00:03:03]} Nf6 {[%clk 01:31:41]} {[%emt 00:00:30]} 7. O-O {[%clk 01:23:41]}
{[%emt 00:06:12]} O-O {[%clk 01:31:57]} {[%emt 00:00:14]} 8. Nc3 {[%clk
01:24:04]} {[%emt 00:00:07]} Nc6 {[%clk 01:30:59]} {[%emt 00:01:28]} 9. h3
{[%clk 01:20:34]} {[%emt 00:03:59]} h6 {[%clk 01:30:07]} {[%emt 00:01:22]} 10.
Qc2 {[%clk 01:16:26]} {[%emt 00:04:38]} Na5 {[%clk 01:29:13]} {[%emt 00:01:25]}
11. Bd3 {[%clk 01:15:24]} {[%emt 00:01:32]} Nc6 {[%clk 01:25:54]} {[%emt
00:03:49]} 12. a3 {[%clk 01:11:50]} {[%emt 00:04:03]} Be6 {[%clk 01:24:28]}
{[%emt 00:01:56]} 13. Rd1 {[%clk 01:08:38]} {[%emt 00:03:42]} Nd5 {[%clk
01:14:20]} {[%emt 00:10:39]} 14. Ne4 {[%clk 01:08:14]} {[%emt 00:00:53]} Re8
{[%clk 01:10:28]} {[%emt 00:04:23]} 15. Nc5 {[%clk 01:02:32]} {[%emt 00:06:11]}
Bxc5 {[%clk 01:07:34]} {[%emt 00:03:24]} 16. dxc5 {[%clk 00:56:18]} {[%emt
00:06:44]} Qf6 {[%clk 01:05:14]} {[%emt 00:02:50]} 17. Bh7+ {[%clk 00:55:19]}
{[%emt 00:01:28]} Kh8 {[%clk 01:04:02]} {[%emt 00:01:43]} 18. Be4 {[%clk
00:55:26]} {[%emt 00:00:23]} Rad8 {[%clk 01:01:36]} {[%emt 00:02:56]} 19. Bd2
{[%clk 00:55:43]} {[%emt 00:00:12]} Qe7 {[%clk 00:39:22]} {[%emt 00:22:44]} 20.
Re1 {[%clk 00:53:15]} {[%emt 00:02:57]} Qf8 {[%clk 00:36:39]} {[%emt 00:03:14]}
21. Rad1 {[%clk 00:52:32]} {[%emt 00:01:12]} Nf6 {[%clk 00:32:20]} {[%emt
00:04:50]} 22. Bxc6 {[%clk 00:45:16]} {[%emt 00:07:46]} bxc6 {[%clk 00:32:23]}
{[%emt 00:00:28]} 23. b4 {[%clk 00:44:41]} {[%emt 00:01:05]} Bd5 {[%clk
00:30:27]} {[%emt 00:02:26]} 24. Ne5 {[%clk 00:42:31]} {[%emt 00:02:39]} Re6
{[%clk 00:21:21]} {[%emt 00:09:36]} 25. Re3 {[%clk 00:40:30]} {[%emt 00:02:32]}
Qe8 {[%clk 00:19:29]} {[%emt 00:02:23]} 26. Bc3 {[%clk 00:38:54]} {[%emt
00:02:05]} Kg8 {[%clk 00:16:55]} {[%emt 00:03:04]} 27. Qe2 {[%clk 00:33:50]}
{[%emt 00:05:34]} Nd7 {[%clk 00:12:31]} {[%emt 00:04:56]} 28. Ng4 {[%clk
00:32:01]} {[%emt 00:02:18]} Rxe3 {[%clk 00:08:03]} {[%emt 00:04:58]} 29. Nxe3
{[%clk 00:28:14]} {[%emt 00:04:17]} Qe6 {[%clk 00:06:52]} {[%emt 00:01:41]} 30.
Qa6 {[%clk 00:23:07]} {[%emt 00:05:38]} Nf6 {[%clk 00:00:40]} {[%emt 00:06:42]}
31. Bxf6 {[%clk 00:22:47]} {[%emt 00:00:49]} Qxf6 {[%clk 00:00:58]} {[%emt
00:00:12]} 32. Qxa7 {[%clk 00:22:48]} {[%emt 00:00:29]} Re8 {[%clk 00:00:43]}
{[%emt 00:00:46]} 33. Qxc7 {[%clk 00:20:49]} {[%emt 00:02:28]} Rxe3 {[%clk
00:00:36]} {[%emt 00:00:38]} 34. fxe3 {[%clk 00:20:58]} {[%emt 00:00:20]} Qg5
{[%clk 00:00:57]} {[%emt 00:00:11]} 35. Rxd5 {[%clk 00:12:51]} {[%emt
00:08:37]} Qxd5 {[%clk 00:00:43]} {[%emt 00:00:44]} 36. Kh2 {[%clk 00:12:03]}
{[%emt 00:01:18]} Qe4 {[%clk 00:00:34]} {[%emt 00:00:40]} 37. Qb8+ {[%clk
00:11:42]} {[%emt 00:00:49]} Kh7 {[%clk 00:01:01]} {[%emt 00:00:04]} 38. Qf4
{[%clk 00:12:05]} {[%emt 00:00:07]} Qe6 {[%clk 00:00:44]} {[%emt 00:00:47]} 39.
a4 {[%clk 00:12:05]} {[%emt 00:00:30]} g5 {[%clk 00:00:51]} {[%emt 00:00:23]}
40. Qd4 {[%clk 00:11:54]} {[%emt 00:00:41]} Qb3 {[%clk 00:00:36]} {[%emt
00:00:46]} 41. a5 {[%clk 00:10:01]} {[%emt 00:02:22]} Qa4 {[%clk 00:30:14]}
{[%emt 00:00:52]} 42. Qf6 {[%clk 00:37:32]} {[%emt 00:02:58]} Qxb4 {[%clk
00:30:00]} {[%emt 00:00:45]} 43. Qxf7+ {[%clk 00:37:51]} {[%emt 00:00:12]} Kh8
{[%clk 00:30:26]} {[%emt 00:00:04]} 44. Qe8+ {[%clk 00:37:48]} {[%emt
00:00:33]} Kg7 {[%clk 00:30:31]} {[%emt 00:00:26]} 45. Qd7+ {[%clk 00:38:11]}
{[%emt 00:00:06]} Kg8 {[%clk 00:30:06]} {[%emt 00:00:55]} 46. Qxc6 {[%clk
00:38:07]} {[%emt 00:00:33]} Qxa5 {[%clk 00:30:25]} {[%emt 00:00:12]} 47. Qg6+
{[%clk 00:38:23]} {[%emt 00:00:13]} Kf8 {[%clk 00:30:33]} {[%emt 00:00:23]} 48.
Qxh6+ {[%clk 00:38:45]} {[%emt 00:00:08]} Kf7 {[%clk 00:30:28]} {[%emt
00:00:35]} 49. Qxg5 {[%clk 00:39:06]} {[%emt 00:00:07]} Qc3 {[%clk 00:30:41]}
{[%emt 00:00:18]} 50. h4 {[%clk 00:38:48]} {[%emt 00:00:47]} Ke6 {[%clk
00:29:59]} {[%emt 00:01:13]} 51. h5 {[%clk 00:38:55]} {[%emt 00:00:22]} Qh8
{[%clk 00:29:56]} {[%emt 00:00:34]} 52. h6 {[%clk 00:38:37]} {[%emt 00:00:48]}
Qb8+ {[%clk 00:29:55]} {[%emt 00:00:33]} 53. Qf4 {[%clk 00:38:16]} {[%emt
00:00:49]} Qb1 {[%clk 00:30:02]} {[%emt 00:00:23]} 54. e4 {[%clk 00:37:38]}
{[%emt 00:01:08]} Qd1 {[%clk 00:29:53]} {[%emt 00:00:41]} 55. Qd6+ {[%clk
00:37:58]} {[%emt 00:00:09]} 1-0

[Event "30e Open International de Saint Affrique"]
[Site "Saint Affrique, France"]
[Date "2024.07.27"]
[Round "9.4"]
[White "Ciarletta, Ulysse"]
[Black "Ouakhir, Mehdi"]
[Result "1-0"]
[TimeControl "1h30/40 + 30min + sec/mv"]
[BlackTitle "FM"]
[WhiteElo "2139"]
[BlackElo "2210"]

1. d4 {[%clk 01:30:59]} {[%emt 00:00:01]} d5 {[%clk 01:26:53]} {[%emt
00:04:08]} 2. c4 {[%clk 01:31:17]} {[%emt 00:00:11]} e6 {[%clk 01:27:18]}
{[%emt 00:00:05]} 3. Nf3 {[%clk 01:31:36]} {[%emt 00:00:10]} c6 {[%clk
01:27:39]} {[%emt 00:00:10]} 4. Qc2 {[%clk 01:31:16]} {[%emt 00:00:50]} Nf6
{[%clk 01:26:50]} {[%emt 00:01:19]} 5. g3 {[%clk 01:31:36]} {[%emt 00:00:09]}
dxc4 {[%clk 01:19:13]} {[%emt 00:08:07]} 6. Qxc4 {[%clk 01:31:21]} {[%emt
00:00:44]} b5 {[%clk 01:12:32]} {[%emt 00:07:13]} 7. Qc2 {[%clk 01:29:56]}
{[%emt 00:01:54]} Bb7 {[%clk 01:12:48]} {[%emt 00:00:14]} 8. Bg2 {[%clk
01:25:27]} {[%emt 00:05:00]} Nbd7 {[%clk 01:08:50]} {[%emt 00:04:28]} 9. O-O
{[%clk 01:25:09]} {[%emt 00:00:47]} Be7 {[%clk 01:06:26]} {[%emt 00:02:54]} 10.
Rd1 {[%clk 01:18:30]} {[%emt 00:07:09]} Qb6 {[%clk 01:05:56]} {[%emt 00:01:00]}
11. a4 {[%clk 01:13:15]} {[%emt 00:05:45]} a6 {[%clk 01:00:23]} {[%emt
00:06:03]} 12. a5 {[%clk 01:11:54]} {[%emt 00:01:50]} Qa7 {[%clk 00:57:20]}
{[%emt 00:03:33]} 13. Nc3 {[%clk 01:06:48]} {[%emt 00:05:36]} Rc8 {[%clk
00:54:21]} {[%emt 00:03:30]} 14. Ne5 {[%clk 01:02:18]} {[%emt 00:04:59]} O-O
{[%clk 00:35:31]} {[%emt 00:19:20]} 15. Nxd7 {[%clk 00:56:52]} {[%emt
00:05:56]} Nxd7 {[%clk 00:35:17]} {[%emt 00:00:45]} 16. e4 {[%clk 00:57:05]}
{[%emt 00:00:16]} Rfd8 {[%clk 00:31:32]} {[%emt 00:04:15]} 17. Qe2 {[%clk
00:49:53]} {[%emt 00:07:42]} c5 {[%clk 00:25:09]} {[%emt 00:06:53]} 18. d5
{[%clk 00:47:45]} {[%emt 00:02:37]} Nf8 {[%clk 00:20:44]} {[%emt 00:04:55]} 19.
h4 {[%clk 00:44:47]} {[%emt 00:03:29]} Qa8 {[%clk 00:19:44]} {[%emt 00:01:31]}
20. h5 {[%clk 00:43:30]} {[%emt 00:01:46]} h6 {[%clk 00:15:59]} {[%emt
00:04:14]} 21. Bh3 {[%clk 00:34:58]} {[%emt 00:09:04]} Bf6 {[%clk 00:11:45]}
{[%emt 00:04:44]} 22. Be3 {[%clk 00:29:54]} {[%emt 00:05:33]} Bxc3 {[%clk
00:10:24]} {[%emt 00:01:52]} 23. bxc3 {[%clk 00:30:13]} {[%emt 00:00:10]} exd5
{[%clk 00:10:43]} {[%emt 00:00:11]} 24. Bxc8 {[%clk 00:29:32]} {[%emt
00:01:12]} Rxc8 {[%clk 00:09:24]} {[%emt 00:01:49]} 25. Qg4 {[%clk 00:28:33]}
{[%emt 00:01:28]} Ne6 {[%clk 00:07:20]} {[%emt 00:02:34]} 26. Bxh6 {[%clk
00:27:29]} {[%emt 00:01:34]} d4 {[%clk 00:07:43]} {[%emt 00:00:07]} 27. f3
{[%clk 00:22:52]} {[%emt 00:05:07]} Kh8 {[%clk 00:03:01]} {[%emt 00:05:12]} 28.
Bf4 {[%clk 00:21:48]} {[%emt 00:01:33]} Rc6 {[%clk 00:01:11]} {[%emt 00:02:21]}
29. h6 {[%clk 00:21:03]} {[%emt 00:01:14]} gxh6 {[%clk 00:01:40]} {[%emt
00:00:01]} 30. Be5+ {[%clk 00:21:13]} {[%emt 00:00:20]} Kh7 {[%clk 00:02:05]}
{[%emt 00:00:04]} 31. Qf5+ {[%clk 00:21:29]} {[%emt 00:00:14]} Kg8 {[%clk
00:02:34]} {[%emt 00:00:02]} 32. Qf6 {[%clk 00:21:13]} {[%emt 00:00:45]} Kf8
{[%clk 00:02:49]} {[%emt 00:00:14]} 33. Qxh6+ {[%clk 00:21:16]} {[%emt
00:00:28]} Ke8 {[%clk 00:02:29]} {[%emt 00:00:50]} 34. Qh8+ {[%clk 00:21:30]}
{[%emt 00:00:16]} Ke7 {[%clk 00:01:38]} {[%emt 00:01:22]} 35. Bf6+ {[%clk
00:20:46]} {[%emt 00:01:13]} Kd7 {[%clk 00:02:07]} {[%emt 00:00:02]} 36. Qxa8
{[%clk 00:21:07]} {[%emt 00:00:10]} Bxa8 {[%clk 00:02:36]} {[%emt 00:00:01]} 37.
cxd4 {[%clk 00:21:20]} {[%emt 00:00:17]} cxd4 {[%clk 00:03:04]} {[%emt
00:00:01]} 38. Bxd4 {[%clk 00:21:36]} {[%emt 00:00:14]} Ke7 {[%clk 00:01:17]}
{[%emt 00:02:17]} 39. Kf2 {[%clk 00:19:29]} {[%emt 00:02:37]} Rc2+ {[%clk
00:00:39]} {[%emt 00:01:08]} 40. Ke3 {[%clk 00:19:04]} {[%emt 00:00:55]} Rg2
{[%clk 00:00:34]} {[%emt 00:00:36]} 41. g4 {[%clk 00:18:38]} {[%emt 00:00:55]}
Rg3 {[%clk 00:20:38]} {[%emt 00:10:26]} 42. Be5 {[%clk 00:46:50]} {[%emt
00:02:18]} Rg2 {[%clk 00:12:45]} {[%emt 00:08:25]} 43. Rd2 {[%clk 00:46:41]}
{[%emt 00:00:39]} Rxd2 {[%clk 00:13:10]} {[%emt 00:00:06]} 44. Kxd2 {[%clk
00:47:02]} {[%emt 00:00:08]} Nc5 {[%emt 00:01:24]} 45. Ke3 {[%clk 00:46:36]}
{[%emt 00:00:54]} Nd7 {[%clk 00:04:52]} {[%emt 00:07:57]} 46. Bg3 {[%clk
00:41:42]} {[%emt 00:05:23]} Nf8 {[%clk 00:02:30]} {[%emt 00:02:52]} 47. Rc1
{[%clk 00:40:29]} {[%emt 00:01:43]} Ne6 {[%clk 00:02:57]} {[%emt 00:00:03]} 48.
f4 {[%clk 00:39:58]} {[%emt 00:01:01]} Kd8 {[%clk 00:02:00]} {[%emt 00:01:27]}
1-0

[Event "30e Open International de Saint Affrique"]
[Site "Saint Affrique, France"]
[Date "2024.07.27"]
[Round "9.5"]
[White "Bassal, Samuel"]
[Black "Bruneau, Laurent"]
[Result "1/2-1/2"]
[TimeControl "1h30/40 + 30min + sec/mv"]
[BlackTitle "FM"]
[WhiteElo "1978"]
[BlackElo "2179"]

1. d4 {[%clk 01:13:04]} {[%emt 00:17:56]} d5 {[%clk 01:30:49]} {[%emt
00:00:12]} 2. Nf3 {[%clk 01:13:15]} {[%emt 00:00:19]} Nf6 {[%clk 01:31:13]}
{[%emt 00:00:06]} 3. c4 {[%clk 01:13:38]} {[%emt 00:00:07]} e6 {[%clk
01:31:36]} {[%emt 00:00:06]} 4. e3 {[%clk 01:13:50]} {[%emt 00:00:18]} c5
{[%clk 01:31:04]} {[%emt 00:01:01]} 5. Bd3 {[%clk 01:13:20]} {[%emt 00:01:00]}
Nc6 {[%clk 01:28:12]} {[%emt 00:03:22]} 6. O-O {[%clk 01:13:15]} {[%emt
00:00:35]} Be7 {[%clk 01:24:01]} {[%emt 00:04:41]} 7. Nc3 {[%clk 01:12:32]}
{[%emt 00:01:12]} O-O {[%clk 01:24:19]} {[%emt 00:00:12]} 8. b3 {[%clk
01:11:32]} {[%emt 00:01:31]} cxd4 {[%clk 01:22:43]} {[%emt 00:02:06]} 9. exd4
{[%clk 01:07:02]} {[%emt 00:05:00]} b6 {[%clk 01:22:32]} {[%emt 00:00:41]} 10.
Bb2 {[%clk 01:05:57]} {[%emt 00:01:35]} Bb7 {[%clk 01:22:38]} {[%emt 00:00:25]}
11. cxd5 {[%clk 01:05:01]} {[%emt 00:01:26]} Nxd5 {[%clk 01:22:27]} {[%emt
00:00:41]} 12. Nxd5 {[%clk 01:04:45]} {[%emt 00:00:46]} Qxd5 {[%clk 01:22:38]}
{[%emt 00:00:18]} 13. Bc4 {[%clk 00:56:15]} {[%emt 00:09:00]} Qh5 {[%clk
01:12:00]} {[%emt 00:11:08]} 14. d5 {[%clk 00:51:51]} {[%emt 00:04:55]} Rad8
{[%clk 01:07:15]} {[%emt 00:05:15]} 15. Qe2 {[%clk 00:40:39]} {[%emt 00:11:42]}
exd5 {[%clk 01:03:34]} {[%emt 00:04:11]} 16. Bb5 {[%clk 00:40:53]} {[%emt
00:00:15]} Bc5 {[%clk 00:52:23]} {[%emt 00:11:41]} 17. Rfe1 {[%clk 00:35:21]}
{[%emt 00:06:02]} Rd6 {[%clk 00:41:43]} {[%emt 00:11:10]} 18. a3 {[%clk
00:30:41]} {[%emt 00:05:11]} a5 {[%clk 00:36:45]} {[%emt 00:05:28]} 19. Rac1
{[%clk 00:25:25]} {[%emt 00:05:46]} Rh6 {[%clk 00:32:05]} {[%emt 00:05:10]} 20.
h3 {[%clk 00:22:41]} {[%emt 00:03:14]} d4 {[%clk 00:22:27]} {[%emt 00:10:08]}
21. Bxc6 {[%clk 00:20:14]} {[%emt 00:02:57]} Rxc6 {[%clk 00:20:24]} {[%emt
00:02:33]} 22. Nxd4 {[%clk 00:19:05]} {[%emt 00:01:39]} Qxe2 {[%clk 00:20:31]}
{[%emt 00:00:23]} 23. Nxe2 {[%clk 00:19:08]} {[%emt 00:00:28]} Rd6 {[%clk
00:18:27]} {[%emt 00:02:34]} 24. Ng3 {[%clk 00:08:50]} {[%emt 00:10:48]} Rd2
{[%clk 00:12:55]} {[%emt 00:06:02]} 25. Re2 {[%clk 00:09:15]} {[%emt 00:00:05]}
Rxb2 {[%clk 00:13:12]} {[%emt 00:00:13]} 26. Rxb2 {[%clk 00:09:25]} {[%emt
00:00:21]} Bxa3 {[%clk 00:13:35]} {[%emt 00:00:07]} 27. Rc7 {[%clk 00:08:41]}
{[%emt 00:01:13]} Bxb2 {[%clk 00:12:49]} {[%emt 00:01:16]} 28. Rxb7 {[%clk
00:09:05]} {[%emt 00:00:06]} Bd4 {[%clk 00:13:12]} {[%emt 00:00:06]} 29. Ne2
{[%clk 00:08:07]} {[%emt 00:01:29]} Bc5 {[%clk 00:11:38]} {[%emt 00:02:04]} 30.
Nc3 {[%clk 00:08:30]} {[%emt 00:00:07]} h5 {[%clk 00:08:48]} {[%emt 00:03:20]}
31. Na4 {[%clk 00:08:35]} {[%emt 00:00:25]} Bd4 {[%clk 00:09:04]} {[%emt
00:00:14]} 32. Nxb6 {[%clk 00:07:52]} {[%emt 00:01:13]} Re8 {[%clk 00:09:03]}
{[%emt 00:00:31]} 33. Kf1 {[%clk 00:07:43]} {[%emt 00:00:38]} Bc3 {[%clk
00:08:27]} {[%emt 00:01:06]} 34. g3 {[%clk 00:04:06]} {[%emt 00:04:08]} Re1+
{[%clk 00:06:27]} {[%emt 00:02:30]} 35. Kg2 {[%clk 00:04:32]} {[%emt 00:00:04]}
Bd4 {[%clk 00:04:41]} {[%emt 00:02:16]} 36. Nd5 {[%clk 00:02:39]} {[%emt
00:02:23]} Re2 {[%clk 00:04:37]} {[%emt 00:00:35]} 37. Kf3 {[%clk 00:03:03]}
{[%emt 00:00:07]} Rxf2+ {[%clk 00:04:03]} {[%emt 00:01:04]} 38. Ke4 {[%clk
00:03:30]} {[%emt 00:00:03]} Bc5 {[%clk 00:02:56]} {[%emt 00:01:36]} 39. Rb5
{[%clk 00:03:19]} {[%emt 00:00:40]} Bd6 {[%clk 00:02:23]} {[%emt 00:01:05]} 40.
Rxa5 {[%clk 00:03:14]} {[%emt 00:00:35]} Bxg3 {[%clk 00:01:08]} {[%emt
00:01:45]} 41. Ne7+ {[%clk 00:28:27]} {[%emt 00:05:17]} Kf8 {[%clk 00:31:17]}
{[%emt 00:00:20]} 42. Nf5 {[%clk 00:28:30]} {[%emt 00:00:26]} Bb8 {[%emt
00:18:35]} 43. Nd4 {[%clk 00:14:39]} Bh2 {[%clk 00:24:00]} {[%emt 00:04:05]} 44.
Ra8+ {[%clk 00:06:25]} {[%emt 00:08:43]} Ke7 {[%clk 00:24:20]} {[%emt
00:00:10]} 45. Nf5+ {[%clk 00:06:33]} {[%emt 00:00:23]} Kf6 {[%clk 00:24:19]}
{[%emt 00:00:30]} 46. Ra6+ {[%clk 00:06:47]} {[%emt 00:00:16]} Kg5 {[%clk
00:24:20]} {[%emt 00:00:30]} 47. Nxg7 {[%clk 00:06:39]} {[%emt 00:00:38]} Rf4+
{[%clk 00:17:06]} {[%emt 00:07:44]} 48. Ke3 {[%clk 00:06:06]} {[%emt 00:01:03]}
Rb4 {[%clk 00:16:52]} {[%emt 00:00:45]} 49. Ra5+ {[%clk 00:05:12]} {[%emt
00:01:24]} Kg6 {[%clk 00:16:27]} {[%emt 00:00:54]} 50. Nxh5 {[%clk 00:03:57]}
{[%emt 00:01:45]} Rxb3+ {[%clk 00:11:37]} {[%emt 00:05:20]} 51. Kf2 {[%clk
00:01:53]} {[%emt 00:02:34]} Rxh3 {[%clk 00:10:44]} {[%emt 00:01:22]} 52. Ra6+
{[%clk 00:01:15]} {[%emt 00:01:09]} Kxh5 {[%clk 00:11:03]} {[%emt 00:00:11]} 53.
Rf6 {[%clk 00:01:40]} {[%emt 00:00:05]} Kg4 {[%clk 00:10:50]} {[%emt 00:00:42]}
54. Rxf7 {[%clk 00:02:01]} {[%emt 00:00:09]} Bf4 {[%clk 00:11:06]} {[%emt
00:00:13]} 55. Rg7+ {[%clk 00:02:13]} {[%emt 00:00:18]} Bg5 {[%clk 00:11:28]}
{[%emt 00:00:09]} 56. Ke2 {[%clk 00:02:00]} {[%emt 00:00:43]} Re3+ {[%clk
00:11:20]} {[%emt 00:00:37]} 57. Kf2 {[%clk 00:02:10]} {[%emt 00:00:21]} Rd3
{[%clk 00:11:32]} {[%emt 00:00:18]} 58. Rg8 {[%clk 00:01:40]} {[%emt 00:01:00]}
Rd2+ {[%clk 00:11:41]} {[%emt 00:00:21]} 59. Ke1 {[%clk 00:01:57]} {[%emt
00:00:13]} Rg2 {[%clk 00:11:41]} {[%emt 00:00:30]} 60. Kd1 {[%clk 00:02:05]}
{[%emt 00:00:23]} Kf3 {[%clk 00:11:53]} {[%emt 00:00:17]} 61. Rf8+ {[%clk
00:00:49]} {[%emt 00:01:47]} Ke3 {[%clk 00:06:55]} {[%emt 00:05:28]} 62. Rf7
{[%clk 00:00:56]} {[%emt 00:00:23]} Ke4 {[%clk 00:06:36]} {[%emt 00:00:49]} 63.
Rg7 {[%clk 00:00:44]} {[%emt 00:00:41]} Rd2+ {[%clk 00:04:45]} {[%emt
00:02:21]} 64. Ke1 {[%clk 00:01:13]} {[%emt 00:00:02]} Bf4 {[%clk 00:04:57]}
{[%emt 00:00:17]} 65. Re7+ {[%clk 00:00:39]} {[%emt 00:01:05]} Kf3 {[%clk
00:05:17]} {[%emt 00:00:09]} 66. Re8 {[%clk 00:00:45]} {[%emt 00:00:24]} Rc2
{[%clk 00:05:31]} {[%emt 00:00:16]} 67. Rd8 {[%clk 00:00:50]} {[%emt 00:00:25]}
Rc6 {[%clk 00:02:29]} {[%emt 00:03:32]} 68. Rd7 {[%clk 00:00:59]} {[%emt
00:00:21]} Rc2 {[%clk 00:01:16]} {[%emt 00:01:42]} 69. Rd8 {[%clk 00:01:21]}
{[%emt 00:00:08]} Rg2 {[%clk 00:00:58]} {[%emt 00:00:48]} 70. Kd1 {[%clk
00:01:30]} {[%emt 00:00:21]} Ke4 {[%clk 00:01:13]} {[%emt 00:00:14]} 71. Re8+
{[%clk 00:01:34]} {[%emt 00:00:27]} Be5 {[%clk 00:01:24]} {[%emt 00:00:19]} 72.
Rd8 {[%clk 00:01:12]} {[%emt 00:00:51]} Bd4 {[%clk 00:01:47]} {[%emt 00:00:08]}
73. Re8+ {[%clk 00:00:37]} {[%emt 00:01:06]} Kd3 {[%clk 00:02:03]} {[%emt
00:00:13]} 74. Re7 {[%clk 00:00:48]} {[%emt 00:00:18]} Rd2+ {[%clk 00:01:55]}
{[%emt 00:00:38]} 75. Ke1 {[%clk 00:00:34]} {[%emt 00:00:44]} Rg2 {[%clk
00:02:05]} {[%emt 00:00:20]} 76. Kd1 {[%clk 00:00:58]} {[%emt 00:00:06]} Rg1+
{[%clk 00:01:59]} {[%emt 00:00:36]} 77. Re1 {[%clk 00:01:22]} {[%emt 00:00:07]}
Rg6 {[%clk 00:02:22]} {[%emt 00:00:07]} 78. Re8 {[%clk 00:01:31]} {[%emt
00:00:22]} Bb6 {[%clk 00:02:22]} {[%emt 00:00:29]} 79. Re7 {[%clk 00:01:38]}
{[%emt 00:00:23]} Rg1+ {[%clk 00:00:42]} {[%emt 00:02:09]} 80. Re1 {[%clk
00:02:01]} {[%emt 00:00:07]} Rg8 {[%clk 00:01:03]} {[%emt 00:00:09]} 81. Re7
{[%clk 00:01:45]} {[%emt 00:00:47]} Bc5 {[%clk 00:01:02]} {[%emt 00:00:30]} 82.
Rd7+ {[%clk 00:01:52]} {[%emt 00:00:24]} Bd4 {[%clk 00:01:23]} {[%emt
00:00:09]} 83. Re7 {[%clk 00:02:14]} {[%emt 00:00:08]} Rf8 {[%clk 00:01:25]}
{[%emt 00:00:28]} 84. Re6 {[%clk 00:02:04]} {[%emt 00:00:40]} Bc5 {[%clk
00:01:39]} {[%emt 00:00:16]} 85. Re5 {[%clk 00:01:11]} {[%emt 00:01:24]} Be3
{[%clk 00:01:48]} {[%emt 00:00:21]} 86. Rd5+ {[%clk 00:00:45]} {[%emt
00:00:55]} Bd4 {[%clk 00:01:38]} {[%emt 00:00:40]} 87. Ke1 {[%clk 00:01:05]}
{[%emt 00:00:10]} Rg8 {[%clk 00:01:50]} {[%emt 00:00:18]} 88. Rf5 {[%clk
00:01:25]} {[%emt 00:00:11]} Ke3 {[%clk 00:01:28]} {[%emt 00:00:52]} 89. Kd1
{[%clk 00:01:39]} {[%emt 00:00:16]} Kd3 {[%clk 00:01:11]} {[%emt 00:00:47]} 90.
Ke1 {[%clk 00:02:03]} {[%emt 00:00:06]} Ke4 {[%clk 00:00:36]} {[%emt 00:01:06]}
91. Rf7 {[%clk 00:02:18]} {[%emt 00:00:14]} Rg2 {[%clk 00:00:59]} {[%emt
00:00:07]} 92. Re7+ {[%clk 00:01:59]} {[%emt 00:00:49]} Kd3 {[%clk 00:00:54]}
{[%emt 00:00:35]} 93. Kd1 {[%clk 00:01:47]} {[%emt 00:00:41]} Ra2 {[%clk
00:00:37]} {[%emt 00:00:48]} 94. Rc7 {[%clk 00:02:06]} {[%emt 00:00:11]} Ra1+
{[%clk 00:00:52]} {[%emt 00:00:14]} 95. Rc1 {[%clk 00:02:26]} {[%emt 00:00:09]}
Ra8 {[%clk 00:01:15]} {[%emt 00:00:08]} 96. Rc7 {[%clk 00:02:48]} {[%emt
00:00:08]} Ra6 {[%clk 00:01:25]} {[%emt 00:00:20]} 97. Rc8 {[%clk 00:03:03]}
{[%emt 00:00:15]} Rg6 {[%clk 00:01:26]} {[%emt 00:00:29]} 98. Re8 {[%clk
00:03:28]} {[%emt 00:00:06]} Bb6 {[%clk 00:01:42]} {[%emt 00:00:14]} 99. Re7
{[%clk 00:03:17]} {[%emt 00:00:41]} Rg8 {[%clk 00:01:50]} {[%emt 00:00:22]} 100.
Rd7+ {[%clk 00:03:23]} {[%emt 00:00:24]} Bd4 {[%clk 00:02:15]} {[%emt
00:00:05]} 101. Re7 {[%clk 00:03:41]} {[%emt 00:00:12]} Rg5 {[%clk 00:01:45]}
{[%emt 00:01:00]} 102. Re8 {[%emt 00:01:49]} Rg1+ {[%clk 00:00:45]} 103. Re1
{[%clk 00:04:14]} {[%emt 00:00:07]} Rg8 {[%clk 00:01:08]} {[%emt 00:00:07]} 104.
Re7 {[%clk 00:04:35]} {[%emt 00:00:10]} Rc8 {[%emt 00:03:08]} 1/2-1/2